Cogmind - Beta 10.1 --- EXPLORER MODE // 2020.10.12 @ 21:06:29 Player: Darlorth Result: Destroyed by Enhanced Grunt with Neutron Cannon Performance ------------- Evolutions (3) 1500 Regions Visited (11) 2200 Robots Destroyed (123) 615 Value Destroyed (3482) 3482 Prototype IDs (13) 260 Alien Tech Used (0) 0 Bonus (600) 600 TOTAL SCORE: 8657 Bonus ------- Aligned with FarCom 300 Met Data Miner 300 Cogmind --------- Core Integrity 0/700 Matter 241/300 Energy 100/100 System Corruption 11% Temperature Cool (6) Movement Core (1100) Ox21 Location -7/Data Miner Parts ------- > --- POWER (1) -------- (None) > --- PROPULSION (4) --- (None) > --- UTILITY (6) ------ High-capacity Storage Unit High-capacity Storage Unit > --- WEAPON (3) ------- (None) > --- INVENTORY (20) --- Light Treads Improved Treads Carbon-fiber Leg Carbon-fiber Leg Large Storage Unit High-capacity Battery (400) High-capacity Battery (400) High-capacity Matter Pod (200) High-capacity Matter Pod (200) Hardened Medium Armor Plating Hardened Medium Armor Plating Medium Reflective Plating Long-range Tractor Beam Particle Gun Autogun KE Penetrator Peak State ------------ > --- POWER ------------ Light Deuterium Engine > --- PROPULSION ------- Armored Treads Medium Treads Medium Treads Medium Treads > --- UTILITY ---------- Improved Heat Sink Improved Heat Sink High-capacity Storage Unit High-capacity Storage Unit High-capacity Battery Hardened Medium Armor Plating > --- WEAPON ----------- Gatling Laser Gatling Laser Gatling Laser > --- INVENTORY -------- Light Deuterium Engine Light Deuterium Engine Neutrino Core Armored Treads Large Storage Unit High-capacity Battery High-capacity Battery High-capacity Matter Pod High-capacity Matter Pod Heavy Armor Plating Hardened Medium Armor Plating Hardened Medium Armor Plating Medium Reflective Plating Hardlight Generator Long-range Tractor Beam Gatling Laser Advanced EMP Blaster Proton Missile Launcher Katana [Rating: 47] Favorites ----------- Power Light Deuterium Engine Engine Light Deuterium Engine Power Core Light Nuclear Core Propulsion Light Treads Treads Light Treads Utility High-capacity Storage Unit Device Heat Sink Storage High-capacity Storage Unit Protection Light Armor Plating Weapon Pulse Rifle Energy Gun Pulse Rifle Ballistic Gun Assault Rifle Launcher Advanced EMP Blaster Impact Weapon Mace Slashing Weapon Katana Build | -11 -10 -10 -9 -9 -9 -8 -8 -7 -7 -7 -7 ------- Run | Scr Mat Min Mat Min Exi Min Mat Fac Low Low Dat Slots Evolved 7 | . 1 . 2 . . . 2 2 . . . Power . | . . . . . . . . . . . . Propulsion 2 | . . . . . . . 2 . . . . Utility 4 | . . . 2 . . . . 2 . . . Weapon 1 | . 1 . . . . . . . . . . Parts Attached 99 | 8 2 1 29 . 2 1 31 6 1 16 2 Power 10 | 1 . . 2 . . 1 2 . . 4 . Engine 7 | 1 . . 2 . . . 2 . . 2 . Core 3 | . . . . . . 1 . . . 2 . Reactor . | . . . . . . . . . . . . Propulsion 24 | 2 . . 6 . . . 8 4 1 3 . Treads 24 | 2 . . 6 . . . 8 4 1 3 . Leg . | . . . . . . . . . . . . Wheel . | . . . . . . . . . . . . Hover . | . . . . . . . . . . . . Flight . | . . . . . . . . . . . . Utility 24 | 3 . . 8 . 2 . 5 2 . 4 . Device 9 | . . . 3 . . . 4 . . 2 . Storage 8 | 1 . . 3 . 2 . 1 1 . . . Processor . | . . . . . . . . . . . . Hackware . | . . . . . . . . . . . . Protection 7 | 2 . . 2 . . . . 1 . 2 . Artifact . | . . . . . . . . . . . . Weapon 41 | 2 2 1 13 . . . 16 . . 5 2 Energy Gun 26 | 2 . 1 11 . . . 10 . . 2 . Energy Cannon . | . . . . . . . . . . . . Ballistic Gun 7 | . 2 . 2 . . . 2 . . 1 . Ballistic Cannon . | . . . . . . . . . . . . Launcher 5 | . . . . . . . 3 . . . 2 Special Weapon . | . . . . . . . . . . . . Impact Weapon 1 | . . . . . . . . . . 1 . Slashing Weapon 2 | . . . . . . . 1 . . 1 . Piercing Weapon . | . . . . . . . . . . . . Special Melee Weapon . | . . . . . . . . . . . . Unidentified Prototypes 3 | . . . 1 . . . 2 . . . . Parts Lost 30 | . . . 1 . . 1 4 . . 18 6 Power 6 | . . . 1 . . . . . . 5 . Propulsion 5 | . . . . . . . 1 . . 2 2 Utility 6 | . . . . . . . . . . 5 1 Weapon 13 | . . . . . . 1 3 . . 6 3 Highest Loss Streak 8 | . . . 1 . . 1 3 . . 8 6 Average Slot Usage (%) 92 | . 100 100 97 100 100 97 97 100 100 84 48 Engine 7 | . 12 12 10 10 10 . 7 7 7 3 . Core 1 | . . . . . . 9 . . . 1 . Treads 23 | . 25 25 19 20 20 20 32 28 28 24 13 Device 12 | . . . 19 20 20 20 15 14 14 9 . Storage 16 | . 12 12 13 20 20 20 16 21 21 19 14 Protection 5 | . 12 12 6 . . . . 7 7 7 6 Energy Gun 20 | . 25 25 22 30 30 27 17 21 21 12 6 Ballistic Gun 4 | . 12 12 6 . . . 3 . . 1 6 Naked Turns . | . . . . . . . . . . . . Heaviest Build 98 | 19 21 22 44 44 84 84 85 95 95 98 89 Greatest Support 104 | 40 40 40 40 40 40 40 87 96 104 104 3 Greatest Overweight (x) 29 | 2 . . 11 1 2 2 1 1 . 2 29 Average Overweight (x) . | . . . . 1 1 1 . . . . 28 Largest Inventory Capacity 20 | 8 8 8 14 14 20 20 20 20 20 20 20 Average Capacity 15 | 6 8 8 10 14 14 20 20 20 20 20 20 Most Carried 20 | 5 8 8 14 14 15 16 20 20 20 20 17 Average Carried 14 | 3 7 8 10 14 14 15 18 18 20 17 16 Final Capacity 20 | 8 8 8 14 14 20 20 20 20 20 20 20 Final Carried 20 | 5 8 8 14 14 15 16 20 20 20 17 16 Class Distribution -------------------- 40% | Hacker-Tank 18% | Hacker-Mutant 13% | Hacker-Skirmisher 13% | Scavenger-Gunner 5% | Scavenger-Skirmisher 5% | Scavenger-Mutant Dominant Class ---------------- Hacker-Tank | -10/Materials Hacker-Tank | -10/Mines Hacker-Tank | -9/Materials Scavenger-Gunner | -9/Mines Scavenger-Gunner | -9/Exiles Scavenger-Skirmisher | -8/Mines Hacker-Skirmisher | -8/Materials Hacker-Skirmisher | -7/Factory Hacker-Tank | -7/Lower Caves Hacker-Mutant | -7/Lower Caves Hacker-Mutant | -7/Data Miner Resources | -11 -10 -10 -9 -9 -9 -8 -8 -7 -7 -7 -7 ----------- Run | Scr Mat Min Mat Min Exi Min Mat Fac Low Low Dat Matter Collected 1908 | 205 315 146 542 . . 26 443 60 10 161 . Remotely . | . . . . . . . . . . . . Salvage Created 4329 | . 246 117 1611 . . 155 1485 9 131 575 . Parts 242 | . 24 10 113 . . 11 55 . 5 24 . Haulers Intercepted 5 | . . . 3 . . . 2 . . . . Recyclers Shooed 1 | . . . . . . . 1 . . . . Parts Field Recycled . | . . . . . . . . . . . . Retrieved Matter . | . . . . . . . . . . . . Parts Self-Destructed . | . . . . . . . . . . . . Prevented . | . . . . . . . . . . . . Kills | -11 -10 -10 -9 -9 -9 -8 -8 -7 -7 -7 -7 ------- Run | Scr Mat Min Mat Min Exi Min Mat Fac Low Low Dat Combat Hostiles Destroyed 92 | . 6 4 32 . . 7 28 . 4 11 . Melee 8 | . . . . . . . . . . 8 . Guns 78 | . 6 4 32 . . 7 22 . 4 3 . AOE 5 | . . . . . . . 5 . . . . Classes Destroyed 13 | . 5 . 6 . . . 2 . . . . Worker 3 | . 1 . 1 . . . 1 . . . . Builder 2 | . 1 . . . . . 1 . . . . Hauler 5 | . . . 3 . . . 2 . . . . Recycler 5 | . . . 4 . . . 1 . . . . Mechanic 1 | . . . . . . . 1 . . . . Operator 4 | . . . 4 . . . . . . . . Watcher 11 | . 2 . 4 . . . 4 1 . . . Swarmer 30 | . 4 2 7 . . 5 7 . 2 3 . Grunt 42 | . 2 2 16 . . 1 17 . 2 2 . Brawler 4 | . . . 1 . . 1 . . . 2 . Duelist 4 | . . . 2 . . . . . . 2 . Sentry 10 | . . . 6 . . . 3 . . 1 . Hunter 2 | . . . . . . . 1 . . 1 . Best Kill Streak 7 | . 5 2 7 . . 3 5 1 2 4 . Combat Bots Only 5 | . 4 2 5 . . 3 4 . 2 4 . Max Kills in Single Turn 5 | . 2 1 3 . . 1 5 1 1 1 . Gunslinging 2 | . . . 2 . . . . . . . . Exploded 3 | . . . . . . . 3 . . . . Melee 1 | . . . . . . . . . . 1 . Uniques/NPCs Destroyed . | . . . . . . . . . . . . Combat | -11 -10 -10 -9 -9 -9 -8 -8 -7 -7 -7 -7 -------- Run | Scr Mat Min Mat Min Exi Min Mat Fac Low Low Dat Damage Taken 5694 | . 54 44 646 . . 71 1106 . 55 2413 1305 Core 1014 | . 11 4 140 . . 3 151 . . 236 469 Absorbed by Shields 78 | . . . . . . . . . . 78 . Core Remaining (%) 82 | 100 . 94 . . . 64 72 . . . . Volleys Fired 198 | . 13 7 74 . . 10 74 3 4 13 . Largest 3 | . 3 3 3 . . 3 3 3 3 3 . Hottest 240 | . 100 125 189 . . 189 240 240 240 240 . Shots Fired 509 | . 39 15 202 . . 26 183 9 12 21 2 Gun 501 | . 39 15 202 . . 26 175 9 12 21 2 Cannon . | . . . . . . . . . . . . Launcher 8 | . . . . . . . 8 . . . . Special . | . . . . . . . . . . . . Kinetic 133 | . 13 7 84 . . . 27 . . 1 1 Thermal 352 | . 13 5 118 . . 26 148 9 12 20 1 Explosive . | . . . . . . . . . . . . Electromagnetic 24 | . 13 3 . . . . 8 . . . . Robot Hit Streak 72 | . 12 18 30 . . 32 72 19 42 13 . Robot Miss Streak 3 | . 2 1 3 . . . 1 1 1 2 . Penetration Max 1 | . . . . . . . 1 . . . . Secondary Targets 14 | . . 1 10 . . 1 2 . . . . Max Gunslinging Chain 2 | . . 1 2 . . 1 1 . . . . Shots Hit Robots 437 | . 22 12 147 . . 18 159 8 12 59 . Core Hits 234 | . 13 7 100 . . 10 64 3 11 26 . Critical Hits 4 | . . . 1 . . . 3 . . . . Critical Kills . | . . . . . . . . . . . . Critical Parts Destroyed 4 | . . . 1 . . . 3 . . . . Melee Attacks 42 | . . . . . . . 2 . . 40 . Impact . | . . . . . . . . . . . . Slashing 42 | . . . . . . . 2 . . 40 . Piercing . | . . . . . . . . . . . . Sneak Attacks . | . . . . . . . . . . . . Combat Hostiles . | . . . . . . . . . . . . Follow-up Attacks . | . . . . . . . . . . . . Damage Inflicted 8343 | . 270 149 2080 . . 306 3579 121 241 1597 . Guns 6325 | . 257 147 2061 . . 288 2784 121 241 426 . Cannons . | . . . . . . . . . . . . Explosions 703 | . . . . . . . 703 . . . . Melee 1200 | . . . . . . . 60 . . 1140 . Ramming 115 | . 13 2 19 . . 18 32 . . 31 . Kinetic 1161 | . 53 61 594 . . . 453 . . . . Thermal 5059 | . 42 47 1467 . . 288 2427 121 241 426 . Explosive . | . . . . . . . . . . . . Electromagnetic 808 | . 162 39 . . . . 607 . . . . Impact . | . . . . . . . . . . . . Slashing 1200 | . . . . . . . 60 . . 1140 . Piercing . | . . . . . . . . . . . . Highest Corruption 11 | . . . . . . . 1 . . 11 11 Average Corruption 6 | . . . . . . . 1 . . 7 11 Corruption Purged . | . . . . . . . . . . . . Effects 60 | . . . . . . . 6 . . 20 34 Message Errors 19 | . . . . . . . 2 . . 8 9 Matter Fused 14 | . . . . . . . . . . 5 9 Heat Flow Errors 4 | . . . . . . . . . . 2 2 Energy Discharges 5 | . . . . . . . 1 . . 1 3 Data Loss (minor) 10 | . . . . . . . 1 . . 1 8 Data Loss (major) 1 | . . . . . . . . . . . 1 Misfires 2 | . . . . . . . . . . . 2 Misdirections 2 | . . . . . . . . . . 2 . Targeting Errors 1 | . . . . . . . 1 . . . . Weapon Failures 2 | . . . . . . . 1 . . 1 . Overload Shots . | . . . . . . . . . . . . Overflow Damage 67 | . . . . . . . 40 . . 27 . Projectiles . | . . . . . . . . . . . . Explosions 40 | . . . . . . . 40 . . . . Melee 27 | . . . . . . . . . . 27 . Knockbacks . | . . . . . . . . . . . . Impact . | . . . . . . . . . . . . Kinetic . | . . . . . . . . . . . . Secondary . | . . . . . . . . . . . . Self-Inflicted Damage 21 | . . . . . . . 21 . . . . Shots 3 | . . . . . . . 3 . . . . Rammed 16 | . 1 1 3 . . 3 1 . . 7 . Targets Rammed 17 | . 1 1 3 . . 3 2 . . 7 . Kicked . | . . . . . . . . . . . . Crushed 1 | . . . . . . . 1 . . . . Highest Temperature 366 | . 159 168 278 . . 165 366 123 183 198 185 Average Temperature 66 | . 52 71 75 . . 69 54 61 82 66 78 Received Heat Transfer 1605 | . 15 24 282 . . 18 576 . 9 417 264 Effects 1 | . . . . . . . 1 . . . . Interference 1 | . . . . . . . 1 . . . . Siege Activations . | . . . . . . . . . . . . Robots Corrupted . | . . . . . . . . . . . . Combat Hostiles . | . . . . . . . . . . . . Parts Fried 6 | . . . . . . . 6 . . . . Impact Corruptions . | . . . . . . . . . . . . Robots Melted 2 | . . . . . . . 2 . . . . Combat Hostiles 1 | . . . . . . . 1 . . . . Parts Melted 9 | . . . 1 . . . 8 . . . . Heat Transferred 10335 | . 100 100 2751 . . 629 5045 275 550 885 . Parts Sabotaged . | . . . . . . . . . . . . Parts Stolen 2 | . . . . . . . . . . 2 . Parts Stripped . | . . . . . . . . . . . . Power Chain Reactions 4 | . . . . . . . 4 . . . . Missiles Intercepted . | . . . . . . . . . . . . Alert | -11 -10 -10 -9 -9 -9 -8 -8 -7 -7 -7 -7 ------- Run | Scr Mat Min Mat Min Exi Min Mat Fac Low Low Dat Peak Influence 384 | . 238 50 384 . . 110 318 69 . . . Initial 42 | . . . 13 . . . . 42 . . . Average 75 | . 75 22 120 . . 45 72 54 . . . Maximum Alert Level 1 | . 1 . 1 . . . 1 . . . . Low Security (%) 87 | 100 74 100 69 100 . 100 97 100 . . . Level 1 12 | . 25 . 30 . . . 2 . . . . Level 2 . | . . . . . . . . . . . . Level 3 . | . . . . . . . . . . . . Level 4 . | . . . . . . . . . . . . Level 5 . | . . . . . . . . . . . . High Security . | . . . . . . . . . . . . Max Security . | . . . . . . . . . . . . Squads Dispatched 9 | . . . 5 . . . 3 . . 1 . Investigation 2 | . . . 1 . . . 1 . . . . Extermination . | . . . . . . . . . . . . Reinforcement 6 | . . . 4 . . . 2 . . . . Assault 1 | . . . . . . . . . . 1 . Garrison . | . . . . . . . . . . . . Intercept . | . . . . . . . . . . . . Construction Impeded . | . . . . . . . . . . . . Haulers Reinforced . | . . . . . . . . . . . . Stealth | -11 -10 -10 -9 -9 -9 -8 -8 -7 -7 -7 -7 --------- Run | Scr Mat Min Mat Min Exi Min Mat Fac Low Low Dat Distress Signals 5 | . . . 3 . . . 2 . . . . Communications Jammed . | . . . . . . . . . . . . Distress Signals . | . . . . . . . . . . . . Times Spotted 155 | . 10 4 49 . . 7 45 2 4 26 8 Peak Tracking Total 8 | . 2 2 5 . . 3 7 1 2 8 4 Tactical Retreats 17 | . . . 6 . . . 3 . . 8 . Traps | -11 -10 -10 -9 -9 -9 -8 -8 -7 -7 -7 -7 ------- Run | Scr Mat Min Mat Min Exi Min Mat Fac Low Low Dat Traps Triggered 7 | . . . 5 . . . 2 . . . . Indirectly . | . . . . . . . . . . . . Trap Hack Attempts . | . . . . . . . . . . . . Triggered . | . . . . . . . . . . . . Disarmed . | . . . . . . . . . . . . Reprogrammed . | . . . . . . . . . . . . Reused . | . . . . . . . . . . . . Traps Extracted . | . . . . . . . . . . . . Installed . | . . . . . . . . . . . . Triggered . | . . . . . . . . . . . . Machines | -11 -10 -10 -9 -9 -9 -8 -8 -7 -7 -7 -7 ---------- Run | Scr Mat Min Mat Min Exi Min Mat Fac Low Low Dat Machines Disabled 5 | . 1 . 1 . . . 2 . . . 1 Max in Single Turn 1 | . 1 . 1 . . . 1 . . . 1 Garrison Access 2 | . . . . . . . 1 1 . . . Machines Sabotaged . | . . . . . . . . . . . . Garrisons Compromised . | . . . . . . . . . . . . Overloaded Fab Kills . | . . . . . . . . . . . . Fab Network Shutdowns . | . . . . . . . . . . . . Hacking | -11 -10 -10 -9 -9 -9 -8 -8 -7 -7 -7 -7 --------- Run | Scr Mat Min Mat Min Exi Min Mat Fac Low Low Dat Machines Accessed 19 | . 2 . 2 . 4 . 2 2 1 2 4 Terminals 3 | . 1 . 1 . . . 1 . . . . Fabricators 1 | . . . . . . . . 1 . . . Repair Stations . | . . . . . . . . . . . . Recycling Units 1 | . 1 . . . . . . . . . . Scanalyzers 1 | . . . 1 . . . . . . . . Garrison Access 2 | . . . . . . . 1 1 . . . Total Hacks 104 | . 6 . 8 . 49 . 6 4 1 4 26 Successful 103 | . 6 . 8 . 49 . 5 4 1 4 26 Failed 1 | . . . . . . . 1 . . . . Catastrophic . | . . . . . . . . . . . . Database Lockouts . | . . . . . . . . . . . . Manual 8 | . 3 . . . 1 . . 1 3 . . Terminals 10 | . 4 . 3 . . . 3 . . . . Fabricators 3 | . . . . . . . . 3 . . . Repair Stations . | . . . . . . . . . . . . Recycling Units 2 | . 2 . . . . . . . . . . Scanalyzers 5 | . . . 5 . . . . . . . . Garrison Access 4 | . . . . . . . 3 1 . . . Terminal Hacks 90 | . 4 . 3 . 49 . 3 . 1 4 26 Record 66 | . 1 . . . 49 . 1 . 1 3 11 Part Schematic 6 | . 1 . . . . . . . . . 5 Robot Schematic 7 | . . . . . . . . . . . 7 Prototype ID Bank 3 | . . . . . . . . . . . 3 Open Door 1 | . . . . . . . . . . 1 . Locate Traps 1 | . 1 . . . . . . . . . . Dispatch Records 2 | . 1 . . . . . 1 . . . . Maintenance Status 1 | . . . . . . . 1 . . . . Investigation Status 1 | . . . 1 . . . . . . . . Hauler Manifests 1 | . . . 1 . . . . . . . . Zone Layout 1 | . . . 1 . . . . . . . . Fabricator Hacks 2 | . . . . . . . . 2 . . . Load Schematic 1 | . . . . . . . . 1 . . . Build 1 | . . . . . . . . 1 . . . Repair Station Hacks . | . . . . . . . . . . . . Recycling Unit Hacks 2 | . 2 . . . . . . . . . . Retrieve Matter 1 | . 1 . . . . . . . . . . Retrieve Components 1 | . 1 . . . . . . . . . . Scanalyzer 5 | . . . 5 . . . . . . . . Insert Component 3 | . . . 3 . . . . . . . . Analyze 2 | . . . 2 . . . . . . . . Garrison Access Hacks 3 | . . . . . . . 2 1 . . . Unlock Access 1 | . . . . . . . 1 . . . . Seal Access 2 | . . . . . . . 1 1 . . . Unauthorized Hacks 1 | . . . . . . . . 1 . . . Terminals . | . . . . . . . . . . . . Fabricators 1 | . . . . . . . . 1 . . . Prioritize 1 | . . . . . . . . 1 . . . Repair Stations . | . . . . . . . . . . . . Recycling Units . | . . . . . . . . . . . . Scanalyzers . | . . . . . . . . . . . . Garrison Access . | . . . . . . . . . . . . Data Cores Recovered . | . . . . . . . . . . . . Used . | . . . . . . . . . . . . Hacking Detections 4 | . 1 . 2 . . . 1 . . . . Full Trace Events 3 | . . . 2 . . . 1 . . . . Feedback Events . | . . . . . . . . . . . . Feedback Blocked . | . . . . . . . . . . . . Robot Schematics Acquired 7 | . . . . . . . . . . . 7 Robots Built . | . . . . . . . . . . . . Matter . | . . . . . . . . . . . . Time . | . . . . . . . . . . . . Total Robot Build Rating . | . . . . . . . . . . . . Part Schematics Acquired 8 | . 1 . 2 . . . . . . . 5 Parts Built 2 | . . . . . . . . 2 . . . Matter 102 | . . . . . . . . 102 . . . Time 51 | . . . . . . . . 51 . . . Total Part Build Rating 2 | . . . . . . . . 2 . . . Parts Repaired . | . . . . . . . . . . . . Time . | . . . . . . . . . . . . Parts Recycled . | . . . . . . . . . . . . Recycled Matter . | . . . . . . . . . . . . Retrieved Matter . | . . . . . . . . . . . . Retrieved Components . | . . . . . . . . . . . . Parts Scanalyzed 2 | . . . 2 . . . . . . . . Part Schematics Acquired 2 | . . . 2 . . . . . . . . Parts Damaged . | . . . . . . . . . . . . Bothacking | -11 -10 -10 -9 -9 -9 -8 -8 -7 -7 -7 -7 ------------ Run | Scr Mat Min Mat Min Exi Min Mat Fac Low Low Dat Used RIF Installer . | . . . . . . . . . . . . Robots Hacked . | . . . . . . . . . . . . Non-combat . | . . . . . . . . . . . . Combat . | . . . . . . . . . . . . Robot Hacks Applied . | . . . . . . . . . . . . Relay Couplers Released . | . . . . . . . . . . . . Robots Rewired . | . . . . . . . . . . . . Allies Hacked . | . . . . . . . . . . . . Hacks Repelled . | . . . . . . . . . . . . Allies | -11 -10 -10 -9 -9 -9 -8 -8 -7 -7 -7 -7 -------- Run | Scr Mat Min Mat Min Exi Min Mat Fac Low Low Dat Total Allies . | . . . . . . . . . . . . Largest Group . | . . . . . . . . . . . . Highest-Rated Group . | . . . . . . . . . . . . Highest-Rated Ally . | . . . . . . . . . . . . Total Orders . | . . . . . . . . . . . . Ally Attacks . | . . . . . . . . . . . . Total Damage . | . . . . . . . . . . . . Kills . | . . . . . . . . . . . . Allies Corrupted . | . . . . . . . . . . . . Allies Melted . | . . . . . . . . . . . . Intel | -11 -10 -10 -9 -9 -9 -8 -8 -7 -7 -7 -7 ------- Run | Scr Mat Min Mat Min Exi Min Mat Fac Low Low Dat Robot Analysis Total . | . . . . . . . . . . . . Derelict Logs Recovered . | . . . . . . . . . . . . Drone Launches . | . . . . . . . . . . . . Drone Recoveries . | . . . . . . . . . . . . Exploration | -11 -10 -10 -9 -9 -9 -8 -8 -7 -7 -7 -7 ------------- Run | Scr Mat Min Mat Min Exi Min Mat Fac Low Low Dat Turns Passed 10853 | 117 626 1119 2319 33 888 863 1718 322 528 1389 931 Spaces Moved 5359 | 76 361 682 1160 19 485 454 878 168 309 704 63 Core 102 | 32 . . 7 . . . . . . . 63 Treads 5257 | 44 361 682 1153 19 485 454 878 168 309 704 . Legs . | . . . . . . . . . . . . Wheels . | . . . . . . . . . . . . Hover . | . . . . . . . . . . . . Flight . | . . . . . . . . . . . . Fastest Speed 50 | 50 160 160 160 180 180 180 152 165 162 162 1100 Average Speed 183 | 119 160 160 171 180 182 180 156 175 164 172 1487 Slowest Speed 1500 | 160 160 160 600 180 200 200 185 181 165 205 1500 Overloaded Moves . | . . . . . . . . . . . . Propulsion Burnouts . | . . . . . . . . . . . . Robots Hopped . | . . . . . . . . . . . . Cave-ins Triggered 1 | . . . . . . . . . . 1 . Exploration Rate (%) 54 | 4 62 98 66 7 86 88 51 4 57 64 72 Regions Visited 11 Branch Regions 7 Pre-discovered Areas 3 | . . 1 . . 1 . . . . . 1 Known Exits Taken 11 | 1 1 1 1 1 1 1 1 1 1 1 . Unknown Exits Taken . | . . . . . . . . . . . . Scrap Searched 5 | . . 3 . . . . . . 1 1 . Spaces Dug . | . . . . . . . . . . . . Terrain Destroyed 19 | . . . . . . . 19 . . . . Melee . | . . . . . . . . . . . . Projectile 2 | . . . . . . . 2 . . . . AOE 17 | . . . . . . . 17 . . . . Terrain Rammed . | . . . . . . . . . . . . Walls Destroyed . | . . . . . . . . . . . . Machines Disabled . | . . . . . . . . . . . . Actions | -11 -10 -10 -9 -9 -9 -8 -8 -7 -7 -7 -7 --------- Run | Scr Mat Min Mat Min Exi Min Mat Fac Low Low Dat Total 5927 | 100 381 698 1335 18 492 473 1062 188 318 797 65 Wait 75 | 9 . 5 14 . . 5 35 3 2 2 . Move 5347 | 75 360 681 1159 18 484 453 877 167 308 702 63 Hop . | . . . . . . . . . . . . Pick Up 90 | 8 4 1 29 . 3 1 24 5 1 14 . Fast Attach 16 | 4 . . 7 . . . 4 . 1 . . Attach 43 | 3 1 . 8 . . . 11 3 . 16 1 Detach . | . . . . . . . . . . . . Swap 40 | 1 1 1 14 . 2 1 16 3 . . 1 Drop 58 | . 1 2 27 . 3 . 17 4 2 2 . Fire 198 | . 13 7 74 . . 10 74 3 4 13 . Melee 42 | . . . . . . . 2 . . 40 . Ram . | . . . . . . . . . . . . Kick . | . . . . . . . . . . . . Crush 17 | . 1 1 3 . . 3 2 . . 7 . Escape Stasis 1 | . . . . . . . . . . 1 . Rewire . | . . . . . . . . . . . . Trap . | . . . . . . . . . . . . Miscellaneous . | . . . . . . . . . . . . Route ------- -11/Scrapyard -10/Materials (discovered 2 exits: *Mat / *Min) -10/Mines (discovered 2 exits: *Mat x2) -9/Materials (discovered 5 exits: *Mat x2 / *Min x2 / *Sto) -9/Mines -9/Exiles (discovered 2 exits: *Min x2) -8/Mines -8/Materials (discovered 2 exits: *Fac x2) -7/Factory -7/Lower Caves -7/Lower Caves (discovered 2 exits: *Fac / *Dat) -7/Data Miner (discovered 1 exit: *Pro) History --------- Turn | Location | Event 4 | -11/Scrapyard | Identified exit to Materials 4 | -11/Scrapyard | Discovered exit to Materials (range 16) 118 | -11/Scrapyard | Entered Materials 118 | -10/Materials | Evolved 1 slot: Weapon x1 310 | -10/Materials | Build established: Hacker-Tank 320 | -10/Materials | Identified exit to Mines 320 | -10/Materials | Discovered exit to Mines (range 12) 679 | -10/Materials | Identified exit to Materials 679 | -10/Materials | Discovered exit to Materials (range 12) 744 | -10/Materials | Entered Mines 835 | -10/Mines | Met a Derelict bent on vengeance 996 | -10/Mines | Discovered exit to Materials (range 5) 1303 | -10/Mines | Found a hidden stash of uninstalled traps 1851 | -10/Mines | Discovered exit to Materials (range 7) 1852 | -10/Mines | Learned location of Storage (-9) 1863 | -10/Mines | Entered Materials 1863 | -9/Materials | Evolved 2 slots: Utility x2 1866 | -9/Materials | Identified exit to Mines 1866 | -9/Materials | Discovered exit to Mines (range 8) 2123 | -9/Materials | Identified exit to Storage 2123 | -9/Materials | Discovered exit to Storage (range 8) 3489 | -9/Materials | Identified exit to Materials 3489 | -9/Materials | Discovered exit to Materials (range 4) 3625 | -9/Materials | Discovered exit to Mines (range 9) 3852 | -9/Materials | Discovered exit to Materials (range 16) 3869 | -9/Materials | Build established: Scavenger-Gunner 4182 | -9/Materials | Entered Mines 4206 | -9/Mines | Deemed a non-threat by the Exiles lab entrance 4208 | -9/Mines | Identified exit to Exiles 4208 | -9/Mines | Discovered exit to Exiles (range 5) 4215 | -9/Mines | Entered Exiles 4242 | -9/Exiles | Identified exit to Mines 4242 | -9/Exiles | Discovered exit to Mines (range 15) 4282 | -9/Exiles | Met 8R-AWN 4313 | -9/Exiles | Met EX-HEX 4386 | -9/Exiles | Met EX-BIN 4413 | -9/Exiles | Aligned with FarCom system 4415 | -9/Exiles | Given EX-Vault access code 4509 | -9/Exiles | Opened EX-Vault 4541 | -9/Exiles | Warned to stay clear of 0b10 Research branches 4592 | -9/Exiles | Met EX-DEC 4610 | -9/Exiles | Learned location of Zion (-6) 4729 | -9/Exiles | Visited The Gauntlet 5077 | -9/Exiles | Discovered exit to Mines (range 14) 5103 | -9/Exiles | Entered Mines 5427 | -8/Mines | Build established: Scavenger-Skirmisher 5772 | -8/Mines | Discovered exit to Materials (range 8) 5966 | -8/Mines | Entered Materials 5966 | -8/Materials | Evolved 2 slots: Propulsion x2 6179 | -8/Materials | Lost 3 parts (1n2w) 6572 | -8/Materials | Identified exit to Factory 6572 | -8/Materials | Discovered exit to Factory (range 12) 6967 | -8/Materials | Build established: Hacker-Skirmisher 7492 | -8/Materials | Identified exit to Garrison 7516 | -8/Materials | Discovered exit to Factory (range 8) 7684 | -8/Materials | Entered Factory 7684 | -7/Factory | Evolved 2 slots: Utility x2 7797 | -7/Factory | Fabricated Hcp. Battery (x2) 7996 | -7/Factory | Identified exit to Lower Caves 7996 | -7/Factory | Discovered exit to Lower Caves (range 6) 8006 | -7/Factory | Entered Lower Caves 8306 | -7/Lower Caves | Build established: Hacker-Tank 8511 | -7/Lower Caves | Identified exit to Lower Caves 8511 | -7/Lower Caves | Discovered exit to Lower Caves (range 12) 8534 | -7/Lower Caves | Entered another Lower Caves area 8613 | -7/Lower Caves | Identified exit to Factory 8613 | -7/Lower Caves | Discovered exit to Factory (range 11) 8661 | -7/Lower Caves | Learned Factory security intel 8868 | -7/Lower Caves | Encountered a Warlord checkpoint 9123 | -7/Lower Caves | Attracted the attention of an 0b10 outpost 9200 | -7/Lower Caves | Lost 8 parts (2p1n1u4w) 9340 | -7/Lower Caves | Lost 5 parts (1p1n3u) 9445 | -7/Lower Caves | Build established: Hacker-Mutant 9581 | -7/Lower Caves | Crushed by falling debris 9582 | -7/Lower Caves | System corruption reached 10% 9612 | -7/Lower Caves | Lost 4 parts (1p1u2w) 9901 | -7/Lower Caves | Identified exit to Data Miner 9901 | -7/Lower Caves | Discovered exit to Data Miner (range 5) 9920 | -7/Lower Caves | Lgt. Treads stolen by Master Thief 9921 | -7/Lower Caves | Imp. Heat Sink stolen by Master Thief 9923 | -7/Lower Caves | Entered Data Miner 9923 | -7/Data Miner | Identified exit to Proximity Caves 9923 | -7/Data Miner | Discovered exit to Proximity Caves (range 6) 10253 | -7/Data Miner | Met Data Miner 10628 | -7/Data Miner | Learned location of Section 7 (-2) 10628 | -7/Data Miner | Acquired the access code to Warlord's prototype stash 10776 | -7/Data Miner | Data Conduit disabled 10833 | -7/Data Miner | Core integrity fell below 50% 10846 | -7/Data Miner | Core integrity fell below 20% 10854 | -7/Data Miner | Destroyed by Enhanced Grunt with Neutron Cannon Last Messages --------------- 10732_ System corrupted: Component data lost. 10759_ System corrupted: Energy discharge (-21). 10776_ System corrupted: FCS attempts to trigger KE Penetrator. 10776_ System corrupted: KE Penetrator misfires. 10776_ Slug penetrates Data Conduit. 10776_ Data Conduit disabled. 10778_ Connecting with ORACLE Interface... 10798_ F TEVLNVX#CZI/1&99X=6W&A:KXPB 10813_ System corrupted: Component data lost. 10818_ Hvy. Armor Plating destroyed. 10820_ Arm. Treads destroyed. 10828_ Adv. EMP Blaster destroyed. 10829_ Wave Gun destroyed. 10830_ Imp. Treads destroyed. 10831_ ORACLE Interface disabled. 10835_ System corrupted: Matter fused (-7). 10841_ ORACLE Interface disabled. 10844_ ORACLE Interface goes dark. 10845_ Critical hit. 10845_ Proton Missile Launcher destroyed. Map ----- +----------------------------------------------------+ | | | | | | | | | | | ?????????????????????????????????????????? | | ?????????????????????????????????????????? | | ?????????????????????????????????????????? | | ?????????????????????????????????????????? | | ?????????????????????????????????????####? | | ????????#############??????????????### #? | | ???????"""""""""""""######????????## #? | | ??????""""""" """"""""########## > ##? | | ??????""""""" ## | | ??????"""" | | ?????""""" | | ?????"""" | | ?????""""" | | ??????"""" """"""""""""""""## | | ??????""""" """"###############? | | ??????""""" """""###??????????????? | | ???????"""""" "#####????????????????? | | ???????#####"## "#????????????????????? | | ???????????#"?## g"#????????????????????? | | ???????????#"?##ggg"#????????????????????? | | ?????????????## @ "#????????????????????? | | ?????????????#; "#????????????????????? | | ?????????????# "#????????????????????? | | ?????????????##; "#????????????????????? | | ??????????????#; "##???????????????????? | | ??????????????## ""#???????????????????? | | ???????????#?## #???????????????????? | | ??????????##"#" ""#???????????????????? | | ??????????""""" "####????????????????? | | ??????????""""" X"""""????????????????? | | ??????????##"#" "##"#????????????????? | | ???????????#?## X""""#????????????????? | | ??????????????## "##"#????????????????? | | ???????????????#;#####???????????????????? | | ????????????????#????????????????????????? | | ?????????????????????????????????????????? | | ?????????????????????????????????????????? | | ?????????????????????????????????????????? | | ?????????????????????????????????????????? | | ?????????????????????????????????????????? | | ?????????????????????????????????????????? | | ?????????????????????????????????????????? | | ?????????????????????????????????????????? | | ?????????????????????????????????????????? | | ?????????????????????????????????????????? | +----------------------------------------------------+ Best States ------------- Heat Dissipation 62 Energy Generation 19 Energy Capacity 715 Matter Stores 300 Matter Capacity 300 Sight Range 16 Robot Scan Range 10 Terrain Scan Density 10 Armor Coverage 600 Resistance: KI 35 Resistance: TH 35 Resistance: EX 35 Resistance: EM 35 Resistance: I 35 Resistance: S 35 Resistance: P 35 Core Shielding 20 Evasion (%) 50 Recoil Reduction 4 Offensive Hacking 20 Item Schematics ----------------- Lrg. Storage Unit | -10/Materials | Hacked Hcp. Battery | -9/Materials | Scanalyzed Hrd. Light Armor Plating | -9/Materials | Scanalyzed Combat Drone Bay | -7/Data Miner | Free Lgt. Regenerative Plating | -7/Data Miner | Free Exp. Terrain Scan Processor | -7/Data Miner | Free Exp. Targeting Computer | -7/Data Miner | Free Kinetic Spear | -7/Data Miner | Free Robot Schematics ------------------ S-27 Virus | -7/Data Miner | Free G-50 Soldier | -7/Data Miner | Free G-67 Veteran | -7/Data Miner | Free L-41 Fighter | -7/Data Miner | Free X-72 Disruptor | -7/Data Miner | Free P-70 Sage | -7/Data Miner | Free I-36 Angel | -7/Data Miner | Free Fabricated ------------ Hcp. Battery | x2 | -7/Factory Alien Tech Used ----------------- None Achievements -------------- None Challenges ------------ None Game ------ Seed CoolantRecoilTreads Manual? 0 Play Time 01:21:32 Cumulative 104.9 hours Start 2020.10.12 @ 19:43:25 End 2020.10.12 @ 21:06:29 Sessions 1 Manual Loads 0 Difficulty Explorer Special Mode None Game No. 139 Rogue 102 Adventurer 0 Explorer 37 Win Type - Total 1 Types 1/0/0/0/0/0/0/0/0 Lore% 24 Gallery% 53 Achievement% 40 Wizard Run 0 Options --------- ASCII 0 Keyboard 0 Movement Mouse Keybinds 0 Fullscreen 1 Font 12/Terminus Map View 83x54 Tactical HUD 1 Map Filters NONE Filters NONE Steam 1 RUN: 92c14ffc-9a53-430a-9c9a-92d3b6a3a6dd